fUSD/lending_fUSD_20250302
["ID","MTS","AMOUNT","RATE_DAILY","PERIOD"]
[355063389,1740886250669,-510.61005768,0.00025479,2]
[355063391,1740886250678,-892.94,0.00025479,2]
[355063393,1740886250688,-500.0,0.00025479,2]
[355063395,1740886250697,-500.0,0.00025479,2]
[355063397,1740886250707,-500.0,0.00025479,2]
[355063399,1740886250716,-156.76,0.00025525,2]
[355063401,1740886250730,-1033.0,0.00025562,2]
[355063403,1740886250740,-295.09,0.00025571,2]
[355063405,1740886250749,-156.76,0.0002566,2]
[355063407,1740886250759,-500.0,0.00025662,120]
[355063409,1740886250768,-2000.0,0.00025683,15]
[355063411,1740886250777,-200.0,0.00025683,2]
[355063413,1740886250787,-2019.43,0.000257,2]
[355063415,1740886250796,-200.0,0.00025712,2]
[355063417,1740886250805,-937.94934965,0.00025728,4]
[355063419,1740886250815,-300.0,0.00025743,10]
[355063421,1740886250824,-500.0,0.00025743,2]
[355063423,1740886250833,-500.0,0.00025743,2]
[355063425,1740886250843,-500.0,0.00025743,2]
[355063427,1740886250852,-1920.82,0.00025743,2]
[355063429,1740886250862,-287.27781325,0.00025743,2]
[355063431,1740886250871,-500.0,0.00025743,2]
[355063433,1740886250881,-500.0,0.00025743,2]
[355063435,1740886250890,-634.404577,0.00025743,2]
[355063437,1740886250899,-888.71,0.00025743,2]
[355063439,1740886250908,-500.0,0.00025743,2]
[355063441,1740886250918,-500.0,0.00025743,2]
[355063443,1740886250927,-1223.77,0.00025743,2]
[355063445,1740886250939,-687.32,0.00025743,2]
[355063447,1740886250948,-1307.848542,0.00025743,2]
[355063449,1740886250958,-587.99,0.00025743,2]
[355063451,1740886250968,-784.37,0.00025743,2]
[355063453,1740886250978,-536.68,0.00025743,2]
[355063455,1740886250987,-500.0,0.00025743,2]
[355063457,1740886250996,-909.18,0.00025743,2]
[355063459,1740886251005,-804.26,0.00025743,2]
[355063461,1740886251014,-500.0,0.00025743,2]
[355063463,1740886251024,-500.0,0.00025743,2]
[355063465,1740886251033,-1965.8,0.00025743,2]
[355063467,1740886251042,-1217.64,0.00025743,2]
[355063469,1740886251051,-1549.49,0.00025743,2]
[355063471,1740886251060,-1656.93,0.00025743,2]
[355063473,1740886251070,-500.0,0.00025743,2]
[355063475,1740886251079,-2049.58,0.00025743,2]
[355063477,1740886251088,-1403.0,0.00025743,2]
[355063479,1740886251097,-599.61,0.00025743,2]
[355063481,1740886251106,-1415.66,0.00025743,2]
[355063483,1740886251115,-151.0,0.00025744,7]
[355063485,1740886251124,-151.643021,0.00025744,7]
[355063487,1740886251134,-152.545956,0.00025744,7]
[355063489,1740886251143,-153.57041,0.00025744,7]
[355063491,1740886251152,-1518.4,0.00025744,2]
[355063493,1740886251161,-1174.52,0.00025744,2]
[355063494,1740886251171,-558.960244,0.00025744,7]
[355063497,1740886251180,-558.960244,0.00025744,7]
[355063499,1740886251190,-151.0,0.00025744,7]
[355063501,1740886251199,-300.0,0.00025745,10]
[355063502,1740886251208,-151.0,0.00025745,7]
[355063504,1740886251217,-151.0,0.00025745,7]
[355063506,1740886251228,-151.0,0.00025745,7]
[355063508,1740886251238,-568.93,0.00025746,2]
[355063510,1740886251247,-288.70591582,0.00025746,2]
[355063512,1740886251256,-500.0,0.00025746,2]
[355063514,1740886251265,-500.0,0.00025746,2]
[355063516,1740886251277,-500.0,0.00025746,2]
[355063519,1740886251294,-500.0,0.00025746,2]
[355063521,1740886251305,-500.0,0.00025746,2]
[355063523,1740886251314,-500.0,0.00025746,2]
[355063525,1740886251325,-585.46156587,0.00025746,2]
[355063527,1740886251334,-1119.09,0.00025746,2]
[355063528,1740886251343,-520.56,0.00025746,2]
[355063530,1740886251352,-157.9,0.00025746,2]
[355063533,1740886251362,-500.0,0.00025746,2]
[355063535,1740886251372,-500.0,0.00025746,2]
[355063537,1740886251381,-500.0,0.00025746,2]
[355063539,1740886251390,-500.0,0.00025746,2]
[355063541,1740886251401,-1177.24,0.00025746,2]
[355063542,1740886251410,-500.0,0.00025746,2]
[355063545,1740886251420,-500.0,0.00025746,2]
[355063547,1740886251430,-737.91,0.00025746,2]
[355063549,1740886251439,-572.57,0.00025746,2]
[355063551,1740886251448,-510.85703373,0.00025746,2]
[355063553,1740886251458,-500.0,0.00025746,2]
[355063554,1740886251467,-260.551558,0.00025746,7]
[355063557,1740886251477,-500.0,0.00025751,2]
[355063558,1740886251487,-507.93571693,0.00025751,2]
[355063560,1740886251496,-511.24834249,0.00025751,2]
[355063562,1740886251505,-500.0,0.00025751,2]
[355063564,1740886251514,-500.0,0.00025751,2]
[355063566,1740886251524,-544.54977459,0.00025751,2]
[355063568,1740886251533,-500.0,0.00025751,2]
[355063571,1740886251543,-511.10031686,0.00025751,2]
[355063573,1740886251553,-500.0,0.00025751,2]
[355063575,1740886251563,-500.0,0.00025751,2]
[355063577,1740886251572,-556.20492283,0.00025751,2]
[355063579,1740886251582,-500.0,0.00025751,2]
[355063581,1740886251592,-509.59998781,0.00025751,2]
[355063583,1740886251601,-500.0,0.00025751,2]
[355063585,1740886251612,-506.96291151,0.00025751,2]
[355063587,1740886251621,-500.0,0.00025751,2]
[355063589,1740886251631,-500.0,0.00025751,2]
[355063591,1740886251640,-500.0,0.00025751,2]
[355063593,1740886251650,-500.0,0.00025751,2]
[355063595,1740886251659,-592.09880246,0.00025751,2]
[355063597,1740886251669,-500.0,0.00025751,2]
[355063599,1740886251679,-500.0,0.00025751,2]
[355063601,1740886251689,-544.48833625,0.00025751,2]
[355063603,1740886251698,-500.0,0.00025751,2]
[355063616,1740886251809,-508.2225882,0.00025751,2]
[355063618,1740886251820,-511.94771742,0.00025751,2]
[355063620,1740886251831,-500.0,0.00025751,2]
[355063622,1740886251840,-618.40276222,0.00025751,2]
[355063624,1740886251849,-500.0,0.00025751,2]
[355063626,1740886251859,-504.78209374,0.00025751,2]
[355063628,1740886251868,-510.7738053,0.00025751,2]
[355063630,1740886251878,-500.0,0.00025751,2]
[355063632,1740886251887,-511.29386244,0.00025751,2]
[355063634,1740886251897,-504.26568474,0.00025751,2]
[355063636,1740886251907,-500.0,0.00025751,2]
[355063638,1740886251916,-509.03185931,0.00025751,2]
[355063640,1740886251925,-503.89182382,0.00025751,2]
[355063642,1740886251935,-500.0,0.00025751,2]
[355063644,1740886251944,-330.63222485,0.00025751,2]
[355063646,1740886251953,-500.0,0.00025751,2]
[355063648,1740886251963,-500.0,0.00025751,2]
[355063650,1740886251972,-500.0,0.00025751,2]
[355063652,1740886251984,-508.7934834,0.00025751,2]
[355063654,1740886252000,-500.0,0.00025751,2]
[355063656,1740886252010,-500.0,0.00025751,2]
[355063658,1740886252019,-505.6269873,0.00025751,2]
[355063660,1740886252028,-500.0,0.00025751,2]
[355063662,1740886252038,-510.50717174,0.00025751,2]
[355063664,1740886252047,-649.49,0.00025751,2]
[355063666,1740886252056,-510.18623601,0.00025751,2]
[355063668,1740886252066,-539.55,0.00025751,2]
[355063670,1740886252075,-500.0,0.00025751,2]
[355063672,1740886252084,-500.0,0.00025751,2]
[355063674,1740886252094,-500.0,0.00025751,2]
[355063676,1740886252104,-500.0,0.00025751,2]
[355063678,1740886252114,-500.0,0.00025751,2]
[355063680,1740886252124,-228.40977697,0.00025751,2]
[355063682,1740886252133,-572.4,0.00025751,2]
[355063684,1740886252142,-500.0,0.00025751,2]
[355063686,1740886252152,-500.0,0.00025751,2]
[355063688,1740886252161,-649.25,0.00025751,2]
[355063690,1740886252171,-506.61749782,0.00025751,2]
[355063692,1740886252181,-500.0,0.00025751,2]
[355063694,1740886252191,-500.0,0.00025751,2]
[355063696,1740886252200,-500.0,0.00025751,2]
[355063698,1740886252210,-500.0,0.00025751,2]
[355063700,1740886252219,-500.0,0.00025751,2]
[355063702,1740886252231,-512.54,0.00025751,2]
[355063704,1740886252241,-385.69,0.00025751,2]
[355063706,1740886252250,-210.61,0.00025751,2]
[355063708,1740886252259,-500.0,0.00025751,2]
[355063710,1740886252271,-306.51,0.00025751,2]
[355063712,1740886252280,-558.37,0.00025751,2]
[355063714,1740886252290,-300.47,0.00025751,2]
[355063716,1740886252299,-500.0,0.00025751,2]
[355063718,1740886252310,-500.0,0.00025751,2]
[355063720,1740886252320,-500.0,0.00025751,2]
[355063722,1740886252330,-500.0,0.00025751,2]
[355063724,1740886252339,-169.57,0.00025751,2]
[355063726,1740886252349,-618.47,0.00025751,2]
[355063728,1740886252359,-500.0,0.00025751,2]
[355063730,1740886252369,-500.0,0.00025751,2]
[355063732,1740886252379,-231.71,0.00025751,2]
[355063734,1740886252388,-540.2,0.00025751,2]
[355063736,1740886252397,-500.0,0.00025751,2]
[355063738,1740886252407,-500.0,0.00025751,2]
[355063740,1740886252417,-500.0,0.00025751,2]
[355063742,1740886252426,-500.0,0.00025751,2]
[355063744,1740886252435,-500.0,0.00025751,2]
[355063746,1740886252445,-500.0,0.00025751,2]
[355063748,1740886252454,-507.52760202,0.00025751,2]
[355063750,1740886252464,-505.23,0.00025751,2]
[355063752,1740886252473,-500.0,0.00025751,2]
[355063754,1740886252483,-500.0,0.00025751,2]
[355063756,1740886252492,-151.0,0.00025751,7]
[355063758,1740886252502,-509.28483848,0.00025751,2]
[355063760,1740886252511,-556.82,0.00025751,2]
[355063762,1740886252520,-619.74228869,0.00025751,2]
[355063764,1740886252530,-500.0,0.00025751,2]
[355063766,1740886252539,-193.38133672,0.00025751,2]
[355063768,1740886252548,-351.82,0.00025751,2]
[355063770,1740886252559,-500.0,0.00025751,2]
[355063772,1740886252569,-500.0,0.00025751,2]
[355063774,1740886252579,-500.0,0.00025751,2]
[355063776,1740886252588,-500.0,0.00025751,2]
[355063778,1740886252598,-495.46490261,0.00025751,2]
[355063780,1740886252608,-500.0,0.00025751,2]
[355063782,1740886252617,-500.0,0.00025751,2]
[355063784,1740886252627,-533.91249531,0.00025751,2]
[355063786,1740886252636,-500.0,0.00025751,2]
[355063788,1740886252646,-500.0,0.00025751,2]
[355063790,1740886252655,-500.0,0.00025751,2]
[355063792,1740886252664,-500.0,0.00025751,2]
[355063794,1740886252674,-504.91522114,0.00025751,2]
[355063796,1740886252683,-500.0,0.00025751,2]
[355063798,1740886252692,-500.0,0.00025751,2]
[355063800,1740886252702,-500.0,0.00025751,2]
[355063802,1740886252711,-163.25,0.00025751,2]
[355063804,1740886252720,-500.0,0.00025751,2]
[355063806,1740886252729,-500.0,0.00025751,2]
[355063808,1740886252738,-500.0,0.00025751,2]
[355063810,1740886252753,-500.0,0.00025751,2]
[355063812,1740886252763,-500.0,0.00025751,2]
[355063814,1740886252773,-1302.52,0.00025751,2]
[355063816,1740886252783,-551.25,0.00025751,2]
[355063818,1740886252792,-500.0,0.00025751,2]
[355063820,1740886252802,-500.0,0.00025751,2]
[355063822,1740886252811,-504.20448681,0.00025751,2]
[355063824,1740886252821,-500.0,0.00025751,2]
[355063826,1740886252831,-507.02497443,0.00025751,2]
[355063828,1740886252840,-500.0,0.00025751,2]
[355063830,1740886252850,-503.12680998,0.00025751,2]
[355063833,1740886252860,-1313.5,0.00025751,2]
[355063835,1740886252869,-501.31816243,0.00025751,2]
[355063837,1740886252879,-165.01911319,0.00025751,2]
[355063839,1740886252888,-417.36,0.00025751,2]
[355063841,1740886252898,-1610.22,0.00025751,2]
[355063843,1740886252908,-500.0,0.00025751,2]
[355063845,1740886252918,-508.0267577,0.00025751,2]
[355063846,1740886252927,-504.0256456,0.00025751,2]
[355063847,1740886252937,-509.97144704,0.00025751,2]
[355063848,1740886252947,-500.0,0.00025751,2]
[355063849,1740886252956,-500.0,0.00025751,2]
[355063850,1740886252966,-500.0,0.00025751,2]
[355063851,1740886252976,-500.0,0.00025751,2]
[355063852,1740886252985,-500.0,0.00025751,2]
[355063853,1740886252995,-510.16364289,0.00025751,2]
[355063854,1740886253005,-500.0,0.00025751,2]
[355063855,1740886253014,-606.11,0.00025751,2]
[355063856,1740886253023,-500.0,0.00025751,2]
[355063857,1740886253032,-500.0,0.00025751,2]
[355063858,1740886253042,-500.0,0.00025751,2]
[355063859,1740886253052,-500.0,0.00025751,2]
[355063865,1740886253063,-634.27,0.00025751,2]
[355063868,1740886253178,-502.69,0.00025751,2]
[355063870,1740886253190,-295.52,0.00025751,2]
[355063872,1740886253199,-508.42468187,0.00025751,2]
[355063874,1740886253209,-153.76058552,0.00025751,2]
[355063876,1740886253223,-378.13706333,0.00025751,2]
[355063878,1740886253235,-500.0,0.00025751,2]
[355063880,1740886253245,-608.85335155,0.00025751,2]
[355063882,1740886253255,-500.0,0.00025751,2]
[355063884,1740886253264,-500.0,0.00025751,2]
[355063886,1740886253275,-505.84845188,0.00025751,2]
[355063888,1740886253284,-429.36,0.00025751,2]
[355063890,1740886253294,-500.0,0.00025751,2]
[355063892,1740886253306,-500.0,0.00025751,2]
[355063894,1740886253316,-330.66,0.00025751,2]
[355063896,1740886253326,-500.0,0.00025751,2]
[355063898,1740886253335,-226.01749472,0.00025751,2]
[355063900,1740886253345,-500.0,0.00025751,2]
[355063902,1740886253355,-606.15676998,0.00025751,2]
[355063904,1740886253364,-500.0,0.00025751,2]
[355063906,1740886253374,-500.0,0.00025751,2]
[355063908,1740886253384,-517.97,0.00025751,2]
[355063910,1740886253394,-506.61301352,0.00025751,2]
[355063912,1740886253404,-500.0,0.00025751,2]
[355063914,1740886253414,-487.65558197,0.00025751,2]
[355063916,1740886253423,-512.02968898,0.00025751,2]
[355063918,1740886253434,-500.0,0.00025751,2]
[355063920,1740886253445,-500.0,0.00025751,2]
[355063922,1740886253454,-500.0,0.00025751,2]
[355063924,1740886253464,-500.0,0.00025751,2]
[355063926,1740886253473,-572.87,0.00025751,2]
[355063928,1740886253483,-500.0,0.00025751,2]
[355063930,1740886253493,-500.0,0.00025751,2]
[355063932,1740886253502,-500.0,0.00025751,2]
[355063934,1740886253512,-500.0,0.00025751,2]
[355063936,1740886253522,-506.71297144,0.00025751,2]
[355063938,1740886253532,-500.0,0.00025751,2]
[355063940,1740886253541,-500.0,0.00025751,2]
[355063942,1740886253551,-500.0,0.00025751,2]
[355063945,1740886253563,-500.0,0.00025751,2]
[355063947,1740886253572,-508.00486763,0.00025751,2]
[355063949,1740886253582,-646.43629123,0.00025751,2]
[355063951,1740886253591,-500.0,0.00025751,2]
[355063953,1740886253601,-527.24,0.00025751,2]
[355063955,1740886253610,-500.0,0.00025751,2]
[355063957,1740886253620,-500.0,0.00025751,2]
[355063959,1740886253630,-509.91181592,0.00025751,2]
[355063961,1740886253639,-500.0,0.00025751,2]
[355063963,1740886253648,-500.0,0.00025751,90]
[355063965,1740886253658,-500.0,0.00025751,2]
[355063967,1740886253668,-578.03902153,0.00025751,2]
[355063969,1740886253677,-500.0,0.00025751,2]
[355063971,1740886253688,-2080.77,0.00025751,2]
[355063973,1740886253699,-500.0,0.00025751,2]
[355063975,1740886253709,-500.0,0.00025751,2]
[355063977,1740886253719,-506.39348799,0.00025751,2]
[355063979,1740886253728,-507.89632672,0.00025751,2]
[355063981,1740886253738,-530.68,0.00025751,2]
[355063983,1740886253752,-509.78652447,0.00025751,2]
[355063985,1740886253761,-515.31082156,0.00025751,2]
[355063989,1740886253780,-508.17951194,0.00025751,2]
[355063992,1740886253804,-1512.09,0.00025751,2]
[355063995,1740886253827,-500.0,0.00025751,2]
[355063998,1740886253852,-526.01806945,0.00025751,2]
[355064001,1740886253870,-500.0,0.00025751,2]
[355064005,1740886253894,-500.0,0.00025751,2]
[355064008,1740886253918,-2251.6,0.00025751,2]
[355064012,1740886253942,-500.0,0.00025751,2]
[355064015,1740886253963,-500.0,0.00025751,2]
[355064018,1740886253987,-500.0,0.00025751,2]
[355064022,1740886254010,-756.86,0.00025751,2]
[355064025,1740886254025,-292.92,0.00025751,2]
[355064028,1740886254047,-500.0,0.00025751,2]
[355064030,1740886254066,-504.17118107,0.00025751,2]
[355064033,1740886254087,-500.0,0.00025751,2]
[355064036,1740886254105,-256.27913559,0.00025751,2]
[355064039,1740886254124,-1576.87,0.00025751,2]
[355064042,1740886254143,-702.12,0.00025751,2]
[355064045,1740886254161,-500.0,0.00025751,2]
[355064048,1740886254179,-1032.14,0.00025751,2]
[355064051,1740886254196,-507.81843147,0.00025751,2]
[355064053,1740886254215,-614.13,0.00025751,2]
[355064056,1740886254234,-563.08,0.00025751,2]
[355064059,1740886254252,-500.0,0.00025751,2]
[355064062,1740886254271,-506.31139245,0.00025751,2]
[355064065,1740886254289,-504.01471925,0.00025751,2]
[355064067,1740886254309,-506.08722451,0.00025751,2]
[355064070,1740886254327,-507.41653302,0.00025751,2]
[355064075,1740886254363,-1051.96,0.00025751,2]
[355064079,1740886254389,-500.0,0.00025751,2]
[355064082,1740886254412,-500.0,0.00025751,2]
[355064085,1740886254435,-505.92744724,0.00025751,2]
[355064088,1740886254456,-227.74442903,0.00025751,2]
[355064091,1740886254476,-500.0,0.00025751,2]
[355064094,1740886254494,-1280.59,0.00025751,2]
[355064097,1740886254513,-500.0,0.00025751,2]
[355064101,1740886254535,-500.0,0.00025751,2]
[355064103,1740886254552,-500.0,0.00025751,2]
[355064106,1740886254572,-613.87,0.00025751,2]
[355064109,1740886254590,-500.0,0.00025751,2]
[355064112,1740886254608,-1032.28,0.00025751,2]
[355064115,1740886254626,-883.02,0.00025751,2]
[355064118,1740886254644,-744.55,0.00025751,2]
[355064121,1740886254662,-1104.35,0.00025751,2]
[355064124,1740886254678,-508.86,0.00025751,2]
[355064126,1740886254695,-500.0,0.00025751,2]
[355064129,1740886254712,-500.0,0.00025751,2]
[355064132,1740886254730,-558.960244,0.00025751,7]
[355064135,1740886254747,-1457.92,0.00025751,2]
[355064138,1740886254764,-558.960244,0.00025751,7]
[355064142,1740886254794,-500.0,0.00025751,2]
[355064145,1740886254818,-811.98,0.00025751,2]
[355064148,1740886254839,-500.0,0.00025751,2]
[355064151,1740886254858,-188.376931,0.00025751,7]
[355064154,1740886254877,-1709.58,0.00025751,2]
[355064157,1740886254896,-510.04263973,0.00025751,7]
[355064160,1740886254914,-1625.42,0.00025751,2]
[355064163,1740886254931,-301.77557962,0.00025751,2]
[355064166,1740886254950,-1889.57,0.00025751,2]
[355064169,1740886254968,-500.0,0.00025751,2]
[355064188,1740886255148,-500.0,0.00025751,2]
[355064190,1740886255158,-640.94625794,0.00025751,2]
[355064192,1740886255167,-500.0,0.00025751,2]
[355064194,1740886255176,-1547.38,0.00025751,2]
[355064196,1740886255185,-500.0,0.00025751,2]
[355064198,1740886255195,-1000.0,0.00025751,2]
[355064200,1740886255205,-1485.16,0.00025751,2]
[355064202,1740886255214,-945.2,0.00025751,2]
[355064204,1740886255224,-1404.56,0.00025751,2]
[355064206,1740886255236,-500.0,0.00025751,2]
[355064208,1740886255246,-500.0,0.00025751,2]
[355064210,1740886255255,-1332.39,0.00025751,2]
[355064212,1740886255266,-500.0,0.00025751,2]
[355064214,1740886255277,-500.0,0.00025751,2]
[355064216,1740886255286,-549.14,0.00025751,2]
[355064218,1740886255295,-500.0,0.00025751,2]
[355064220,1740886255305,-500.0,0.00025751,2]
[355064222,1740886255315,-500.0,0.00025751,2]
[355064224,1740886255324,-500.0,0.00025751,2]
[355064226,1740886255333,-500.0,0.00025751,2]
[355064228,1740886255342,-500.0,0.00025751,2]
[355064230,1740886255352,-596.9,0.00025751,2]
[355064232,1740886255361,-750.14,0.00025751,2]
[355064234,1740886255371,-500.0,0.00025751,2]
[355064236,1740886255380,-500.0,0.00025751,2]
[355064238,1740886255389,-500.0,0.00025751,2]
[355064240,1740886255398,-1874.6,0.00025751,2]
[355064242,1740886255407,-500.0,0.00025751,2]
[355064244,1740886255416,-500.0,0.00025751,2]
[355064246,1740886255425,-2112.91,0.00025751,2]
[355064248,1740886255434,-500.0,0.00025751,2]
[355064250,1740886255443,-500.0,0.00025751,2]
[355064252,1740886255452,-510.87075773,0.00025751,2]
[355064254,1740886255462,-500.0,0.00025752,2]
[355064256,1740886255471,-500.0,0.00025752,2]
[355064258,1740886255481,-500.0,0.00025752,2]
[355064260,1740886255490,-500.0,0.00025752,2]
[355064262,1740886255499,-647.64,0.00025752,2]
[355064264,1740886255509,-437.49,0.00025752,2]
[355064266,1740886255518,-534.37,0.00025752,2]
[355064268,1740886255528,-500.0,0.00025752,2]
[355064270,1740886255538,-559.98789211,0.00025752,2]
[355064272,1740886255547,-500.0,0.00025752,2]
[355064274,1740886255558,-500.0,0.00025752,2]
[355064276,1740886255568,-500.0,0.00025752,2]
[355064278,1740886255578,-500.0,0.00025752,2]
[355064280,1740886255588,-500.0,0.00025752,2]
[355064282,1740886255598,-500.0,0.00025752,2]
[355064284,1740886255608,-500.0,0.00025752,2]
[355064286,1740886255618,-164.85962251,0.00025752,2]
[355064288,1740886255628,-643.97,0.00025752,2]
[355064290,1740886255638,-153.496072,0.00025752,7]
[355064292,1740886255647,-500.0,0.00025752,2]
[355064294,1740886255656,-500.0,0.00025752,2]
[355064296,1740886255666,-151.0,0.00025752,7]
[355064298,1740886255675,-793.43,0.00025752,2]
[355064300,1740886255684,-407.6586057,0.00025752,2]
[355064302,1740886255693,-500.0,0.00025752,2]
[355064304,1740886255702,-500.0,0.00025752,2]
[355064306,1740886255712,-500.0,0.00025752,2]
[355064308,1740886255722,-300.24,0.00025752,2]
[355064310,1740886255731,-500.0,0.00025752,2]
[355064312,1740886255741,-500.0,0.00025752,2]
[355064314,1740886255751,-500.0,0.00025752,2]
[355064316,1740886255761,-151.0,0.00025752,7]
[355064318,1740886255771,-500.0,0.00025752,2]
[355064320,1740886255780,-151.0,0.00025752,7]
[355064322,1740886255790,-500.0,0.00025752,2]
[355064324,1740886255800,-500.0,0.00025752,2]
[355064326,1740886255810,-500.0,0.00025752,2]
[355064328,1740886255819,-500.0,0.00025752,2]
[355064330,1740886255829,-759.83,0.00025752,2]
[355064332,1740886255839,-758.88,0.00025752,2]
[355064334,1740886255848,-500.0,0.00025752,2]
[355064336,1740886255858,-573.93181618,0.00025752,2]
[355064338,1740886255868,-500.0,0.00025752,2]
[355064340,1740886255877,-511.96,0.00025752,2]
[355064342,1740886255887,-500.0,0.00025752,2]
[355064344,1740886255897,-500.0,0.00025752,2]
[355064347,1740886255907,-500.0,0.00025752,2]
[355064349,1740886255918,-773.0,0.00025752,2]
[355064351,1740886255928,-972.77,0.00025752,2]
[355064353,1740886255938,-500.0,0.00025752,2]
[355064355,1740886255948,-169.99676255,0.00025752,2]
[355064357,1740886255957,-500.0,0.00025752,2]
[355064359,1740886255967,-156.030748,0.00025752,7]
[355064361,1740886255976,-930.92,0.00025752,2]
[355064363,1740886255985,-151.0,0.00025752,7]
[355064365,1740886255994,-500.0,0.00025752,2]
[355064367,1740886256004,-500.0,0.00025752,2]
[355064369,1740886256014,-500.0,0.00025752,2]
[355064371,1740886256024,-1323.95,0.00025752,2]
[355064373,1740886256034,-500.0,0.00025752,2]
[355064375,1740886256044,-585.56,0.00025752,2]
[355064377,1740886256053,-596.03,0.00025752,2]
[355064379,1740886256066,-500.0,0.00025752,2]
[355064381,1740886256075,-500.0,0.00025752,2]
[355064383,1740886256085,-500.0,0.00025752,2]
[355064385,1740886256094,-676.15,0.00025752,2]
[355064387,1740886256104,-151.0,0.00025752,7]
[355064389,1740886256114,-500.0,0.00025752,2]
[355064391,1740886256124,-615.85,0.00025752,2]
[355064393,1740886256134,-500.0,0.00025752,2]
[355064395,1740886256144,-628.7,0.00025752,2]
[355064397,1740886256153,-1083.56,0.00025752,2]
[355064399,1740886256164,-725.32,0.00025752,2]
[355064401,1740886256174,-500.0,0.00025752,2]
[355064403,1740886256183,-500.0,0.00025752,2]
[355064405,1740886256193,-500.0,0.00025752,2]
[355064407,1740886256203,-574.97,0.00025752,2]
[355064408,1740886256212,-500.0,0.00025752,2]
[355064409,1740886256222,-500.0,0.00025752,2]
[355064410,1740886256235,-500.0,0.00025752,2]
[355064411,1740886256244,-1484.24,0.00025752,2]
[355064412,1740886256254,-500.0,0.00025752,2]
[355064413,1740886256263,-500.0,0.00025752,2]
[355064414,1740886256274,-500.0,0.00025752,2]
[355064415,1740886256283,-852.48,0.00025752,2]
[355064416,1740886256293,-1022.53473457,0.00025753,2]
[355064417,1740886256303,-594.87,0.00025753,2]
[355064418,1740886256316,-500.0,0.00025753,2]
[355064419,1740886256327,-500.0,0.00025753,2]
[355064420,1740886256336,-2118.74,0.00025753,2]
[355064421,1740886256346,-500.0,0.00025753,2]
[355064422,1740886256355,-770.88,0.00025753,2]
[355064423,1740886256364,-689.78,0.00025753,2]
[355064424,1740886256374,-1773.24,0.00025753,2]
[355064425,1740886256384,-500.0,0.00025753,2]
[355064426,1740886256393,-829.94,0.00025753,2]
[355064428,1740886256404,-700.04,0.00025753,2]
[355064430,1740886256414,-2186.92,0.00025753,2]
[355064432,1740886256424,-935.67,0.00025753,2]
[355064434,1740886256434,-2071.99,0.00025753,2]
[355064436,1740886256444,-1297.72,0.00025753,2]
[355064438,1740886256454,-1265.46,0.00025753,2]
[355064440,1740886256463,-1949.08,0.00025753,2]
[355064442,1740886256472,-500.0,0.00025753,2]
[355064444,1740886256482,-500.0,0.00025753,2]
[355064446,1740886256492,-500.0,0.00025753,2]
[355064448,1740886256501,-500.0,0.00025753,2]
[355064450,1740886256511,-500.0,0.00025753,2]
[355064452,1740886256520,-500.0,0.00025753,2]
[355064454,1740886256529,-500.0,0.00025753,2]